[Event "44th Chess Olympiad Open 2022"]
[Site "Chennai"]
[Date "2022.08.09"]
[Round "11.63"]
[White "Sakhawaty, Sepehr"]
[Black "Mohammed, Zozek Salah Mohammed"]
[Result "0-1"]
[ECO "B92"]
[WhiteElo "1809"]
[BlackElo "2232"]
[Annotator "RC"]
[PlyCount "64"]
[EventDate "2022.07.29"]
[EventType "team-tourn"]
[EventCountry "IND"]
[SourceTitle "playchess.com"]
[Source "ChessBase"]
[SourceQuality "1"]
[WhiteTeam "Afghanistan"]
[BlackTeam "Iraq"]
[WhiteTeamCountry "AFG"]
[BlackTeamCountry "IRQ"]
[TimeControl "40/5400+30:1800+30"]

1. e4 {[%emt 0:00:10]} c5 {[%emt 0:00:59]} 2. Nf3 {[%emt 0:00:14]} d6 {[%emt 0:00:01]} 3. d4 {[%emt 0:00:05]} cxd4 {[%emt 0:00:01]} 4. Nxd4 {[%emt 0:00:06]} Nf6 {[%emt 0:00:04]} 5. Nc3 {[%emt 0:00:05]} a6 {[%emt 0:00:05]} 6. Be2 {[%emt 0:00:07]} e5 {[%emt 0:00:05]} 7. Nb3 {[%emt 0:00:04]} Be7 {[%emt 0:00:03]} 8. Be3 {[%emt 0:00:08]} Be6 {[%emt 0:00:22]} 9. O-O {[%emt 0:00:20]} Nbd7 {[%emt 0:02:47]} 10. f4 {[%emt 0:12:47]} Rc8 {[%emt 0:01:36]} 11. f5 {[%emt 0:01:13]} Bc4 {[%emt 0:00:52]} 12. Bxc4 {[%emt 0:02:21]} Rxc4 {[%emt 0:00:02]} 13. Nd2 {[%emt 0:05:32]} Rc8 {[%emt 0:04:30]} 14. Kh1 {[%emt 0:03:13]} b5 {[%emt 0:01:03]} 15. a3 {[%emt 0:03:00]} Nb6 {[%emt 0:04:15]} 16. g4 {[%emt 0:05:02]} Nc4 {[%emt 0:13:27]} 17. Nxc4 {[%emt 0:00:55]} Rxc4 {[%emt 0:00:03]} 18. Qf3 {[%emt 0:15:54]} Qa8 {[%emt 0:05:48]} 19. g5 {[%emt 0:02:56]} Nxe4 {[%emt 0:00:10]} 20. f6 {[%emt 0:00:05]} gxf6 {[%emt 0:00:12]} 21. gxf6 {[%emt 0:00:05]} Bf8 {[%emt 0:12:30]} 22. Rad1 {[%emt 0:02:00]} Qc6 {[%emt 0:01:20]} 23. Nd5 {[%emt 0:01:43]} Nc5 {[%emt 0:01:50]} 24. c3 {[%emt 0:12:22]} Ne6 {[%emt 0:18:30]} 25. b3 {[%emt 0:03:53]} Rh4 {[%emt 0:02:10]} 26. Qg3 {[%emt 0:03:59]} Nd4 {[%emt 0:13:58]} 27. Qg2 {[%emt 0:13:06]} Nxb3 {[%emt 0:01:33]} 28. Bg5 {[%emt 0:05:54]} Rc4 {[%emt 0:04:24]} 29. Rf3 {[%emt 0:00:58]} Rg8 {[%emt 0:02:18]} 30. Rh3 {[%emt 0:04:19]} h6 {[%emt 0:01:03]} 31. Qc2 {[%emt 0:00:38]} Nd4 {[%emt 0:00:49]} 32. Rxd4 {[%emt 0:00:30]} Rxd4 {[%emt 0:00:29]} 0-1

[Event "44th Chess Olympiad Open 2022"]
[Site "Chennai"]
[Date "2022.08.09"]
[Round "11.64"]
[White "Hassan, Tarek Ahmed"]
[Black "Mizzi, Jack"]
[Result "1-0"]
[ECO "D04"]
[WhiteElo "2209"]
[BlackElo "1913"]
[Annotator "RC"]
[PlyCount "147"]
[EventDate "2022.07.29"]
[EventType "team-tourn"]
[EventCountry "IND"]
[SourceTitle "playchess.com"]
[Source "ChessBase"]
[SourceQuality "1"]
[WhiteTeam "Egypt"]
[BlackTeam "Malta"]
[WhiteTeamCountry "EGY"]
[BlackTeamCountry "MLT"]
[TimeControl "40/5400+30:1800+30"]

1. d4 {[%emt 0:00:12]} d5 {[%emt 0:00:37]} 2. Nf3 {[%emt 0:00:05]} Nf6 {[%emt 0:00:11]} 3. e3 {[%emt 0:00:05]} c6 {[%emt 0:00:25]} 4. Bd3 {[%emt 0:00:06]} Nbd7 {[%emt 0:00:47]} 5. Nbd2 {[%emt 0:02:11]} Qc7 {[%emt 0:01:20]} 6. c3 {[%emt 0:00:53]} e5 {[%emt 0:01:59]} 7. e4 {[%emt 0:02:00]} Bd6 {[%emt 0:05:42]} 8. O-O {[%emt 0:02:16]} O-O {[%emt 0:00:45]} 9. Re1 {[%emt 0:01:06]} Rd8 {[%emt 0:09:34]} 10. exd5 {[%emt 0:09:52]} cxd5 {[%emt 0:04:30]} 11. dxe5 {[%emt 0:02:06]} Nxe5 {[%emt 0:00:46]} 12. Nxe5 {[%emt 0:02:26]} Bxe5 {[%emt 0:01:21]} 13. h3 {[%emt 0:00:13]} Bh2+ {[%emt 0:12:31]} 14. Kh1 {[%emt 0:00:15]} Bd6 {[%emt 0:00:07]} 15. Nb3 {[%emt 0:01:19]} h6 {[%emt 0:04:47]} 16. Qf3 {[%emt 0:00:30]} Be5 {[%emt 0:06:14]} 17. Be3 {[%emt 0:03:17]} Bd7 {[%emt 0:00:54]} 18. Bd4 {[%emt 0:03:17]} Re8 {[%emt 0:00:17]} 19. Re2 {[%emt 0:06:50]} Bxd4 {[%emt 0:08:46]} 20. Nxd4 {[%emt 0:01:20]} Rxe2 {[%emt 0:02:07]} 21. Qxe2 {[%emt 0:00:56]} Re8 {[%emt 0:00:28]} 22. Qd2 {[%emt 0:00:59]} Qe5 {[%emt 0:03:02]} 23. Nf3 {[%emt 0:01:45]} Qh5 {[%emt 0:00:32]} 24. Qf4 {[%emt 0:02:35]} Ne4 {[%emt 0:03:06]} 25. Bxe4 {[%emt 0:01:33]} Rxe4 {[%emt 0:01:16]} 26. Qg3 {[%emt 0:02:25]} Re2 {[%emt 0:02:27]} 27. b3 {[%emt 0:03:59]} a5 {[%emt 0:07:56]} 28. Nd4 {[%emt 0:00:52]} Re4 {[%emt 0:00:31]} 29. Kg1 {[%emt 0:02:42]} Kh7 {[%emt 0:02:28]} 30. Qd3 {[%emt 0:01:08]} Qg6 {[%emt 0:00:41]} 31. Rf1 {[%emt 0:01:13]} f5 {[%emt 0:01:47]} 32. f4 {[%emt 0:02:43]} Qd6 {[%emt 0:04:00]} 33. Qd2 {[%emt 0:01:49]} Qe7 {[%emt 0:01:19]} 34. Nf3 {[%emt 0:03:16]} Bb5 {[%emt 0:01:44]} 35. Re1 {[%emt 0:01:51]} Bd3 {[%emt 0:02:59]} 36. Ne5 {[%emt 0:07:41]} Rxe1+ {[%emt 0:00:58]} 37. Qxe1 {[%emt 0:00:01]} Be4 {[%emt 0:00:09]} 38. Qe3 {[%emt 0:01:11]} Qa3 {[%emt 0:01:57]} 39. Qg3 {[%emt 0:01:03]} Qc1+ {[%emt 0:00:51]} 40. Kh2 {[%emt 0:00:13]} g5 {[%emt 0:06:31]} 41. fxg5 {[%emt 0:33:15]} hxg5 {[%emt 0:31:42]} 42. h4 {[%emt 0:02:53]} g4 {[%emt 0:00:00]} 43. Nf7 {[%emt 0:00:00]} Kg6 {[%emt 0:00:00]} 44. Nd8 {[%emt 0:00:00]} Qd2 {[%emt 0:00:00]} 45. Ne6 {[%emt 0:00:00]} b5 {[%emt 0:00:00]} 46. a3 {[%emt 0:00:00]} a4 {[%emt 0:00:00]} 47. b4 {[%emt 0:00:00]} Kh5 {[%emt 0:00:00]} 48. Nf4+ {[%emt 0:00:00]} Kh6 {[%emt 0:00:00]} 49. Kg1 {[%emt 0:00:00]} d4 {[%emt 0:00:00]} 50. cxd4 {[%emt 0:00:00]} Qxd4+ {[%emt 0:00:00]} 51. Qf2 {[%emt 0:00:00]} Qf6 {[%emt 0:03:04]} 52. Kh2 {[%emt 0:00:00]} Qd6 {[%emt 0:00:53]} 53. Qg3 {[%emt 0:01:07]} Qd2 {[%emt 0:00:14]} 54. Kg1 {[%emt 0:00:42]} Qd4+ {[%emt 0:01:17]} 55. Qf2 {[%emt 0:00:46]} Qd1+ {[%emt 0:00:17]} 56. Kh2 {[%emt 0:00:14]} Qd6 {[%emt 0:01:15]} 57. Kg3 {[%emt 0:00:52]} Qf6 {[%emt 0:01:01]} 58. Qe3 {[%emt 0:00:17]} Qd6 {[%emt 0:00:30]} 59. Kf2 {[%emt 0:00:44]} Kh7 {[%emt 0:00:37]} 60. Qa7+ {[%emt 0:02:30]} Kh6 {[%emt 0:00:10]} 61. Kg3 {[%emt 0:02:46]} Bc2 {[%emt 0:01:06]} 62. Qf7 {[%emt 0:00:50]} Be4 {[%emt 0:00:27]} 63. Qe6+ {[%emt 0:00:49]} Qxe6 {[%emt 0:00:19]} 64. Nxe6 {[%emt 0:00:03]} Kg6 {[%emt 0:00:44]} 65. Nd4 {[%emt 0:01:27]} Kf6 {[%emt 0:00:30]} 66. Kf4 {[%emt 0:00:21]} Bxg2 {[%emt 0:00:18]} 67. Nxf5 {[%emt 0:00:09]} Bf1 {[%emt 0:00:34]} 68. Ne3 {[%emt 0:00:18]} Be2 {[%emt 0:00:26]} 69. Nxg4+ {[%emt 0:00:50]} Ke6 {[%emt 0:00:37]} 70. Ne3 {[%emt 0:00:09]} Bh5 {[%emt 0:00:22]} 71. Ke4 {[%emt 0:00:12]} Bg6+ {[%emt 0:00:22]} 72. Kd4 {[%emt 0:00:10]} Kd6 {[%emt 0:00:06]} 73. Ng2 {[%emt 0:00:18]} Be8 {[%emt 0:00:45]} 74. Nf4 {[%emt 0:00:10]} 1-0

[Event "44th Chess Olympiad Open 2022"]
[Site "Chennai"]
[Date "2022.08.09"]
[Round "11.64"]
[White "Abdelazeez, Mohamed Abdalla"]
[Black "Pace, Colin"]
[Result "1-0"]
[ECO "A87"]
[WhiteElo "2182"]
[BlackElo "2159"]
[Annotator "RC"]
[PlyCount "59"]
[EventDate "2022.07.29"]
[EventType "team-tourn"]
[EventCountry "IND"]
[SourceTitle "playchess.com"]
[Source "ChessBase"]
[SourceQuality "1"]
[WhiteTeam "Sudan"]
[BlackTeam "Malta"]
[WhiteTeamCountry "SUD"]
[BlackTeamCountry "MLT"]
[TimeControl "40/5400+30:1800+30"]

1. Nf3 {[%emt 0:00:06]} g6 {[%emt 0:00:07]} 2. d4 {[%emt 0:00:08]} f5 {[%emt 0:00:31]} 3. g3 {[%emt 0:00:06]} Nf6 {[%emt 0:00:07]} 4. Bg2 {[%emt 0:00:05]} Bg7 {[%emt 0:00:05]} 5. c4 {[%emt 0:00:25]} d6 {[%emt 0:00:13]} 6. b3 {[%emt 0:00:06]} O-O {[%emt 0:00:10]} 7. Bb2 {[%emt 0:00:04]} Na6 {[%emt 0:00:48]} 8. O-O {[%emt 0:00:17]} Qe8 {[%emt 0:00:12]} 9. Nbd2 {[%emt 0:00:16]} h6 {[%emt 0:16:46]} 10. Rb1 {[%emt 0:04:30]} c6 {[%emt 0:04:25]} 11. Ba1 {[%emt 0:12:57]} g5 {[%emt 0:04:21]} 12. h4 {[%emt 0:00:08]} Qh5 {[%emt 0:02:08]} 13. b4 {[%emt 0:09:28]} Nc7 {[%emt 0:08:51]} 14. e3 {[%emt 0:07:29]} Ng4 {[%emt 0:11:15]} 15. Rb3 {[%emt 0:02:49]} Bf6 {[%emt 0:08:52]} 16. d5 {[%emt 0:06:34]} cxd5 {[%emt 0:00:57]} 17. cxd5 {[%emt 0:00:35]} Nxd5 {[%emt 0:04:07]} 18. Nxg5 {[%emt 0:01:24]} Ndxe3 {[%emt 0:02:03]} 19. Rxe3 {[%emt 0:00:09]} hxg5 {[%emt 0:05:29]} 20. Bxf6 {[%emt 0:04:11]} exf6 {[%emt 0:04:17]} 21. Re7 {[%emt 0:05:53]} gxh4 {[%emt 0:01:24]} 22. gxh4 {[%emt 0:00:17]} f4 {[%emt 0:05:28]} 23. Qf3 {[%emt 0:02:25]} Qh6 {[%emt 0:05:11]} 24. Rc1 {[%emt 0:01:30]} Ne5 {[%emt 0:02:06]} 25. Qd5+ {[%emt 0:06:02]} Kh8 {[%emt 0:01:20]} 26. Qe4 {[%emt 0:24:38]} f5 {[%emt 0:06:31]} 27. Qd5 {[%emt 0:00:22]} f3 {[%emt 0:02:29]} 28. Rcc7 {[%emt 0:00:07]} fxg2 {[%emt 0:02:25]} 29. Qxd6 {[%emt 0:00:36]} Ng6 {[%emt 0:00:09]} 30. Qd4+ {[%emt 0:00:07]} 1-0

[Event "44th Chess Olympiad Open 2022"]
[Site "Chennai"]
[Date "2022.08.09"]
[Round "11.64"]
[White "Darmanin, Jake"]
[Black "Tagelsir, Abubaker"]
[Result "0-1"]
[ECO "B08"]
[WhiteElo "2101"]
[BlackElo "2232"]
[Annotator "RC"]
[PlyCount "62"]
[EventDate "2022.07.29"]
[EventType "team-tourn"]
[EventCountry "IND"]
[SourceTitle "playchess.com"]
[Source "ChessBase"]
[SourceQuality "1"]
[WhiteTeam "Malta"]
[BlackTeam "Sudan"]
[WhiteTeamCountry "MLT"]
[BlackTeamCountry "SUD"]
[TimeControl "40/5400+30:1800+30"]

1. e4 {[%emt 0:01:45]} d6 {[%emt 0:02:53]} 2. d4 {[%emt 0:00:00]} Nf6 {[%emt 0:00:06]} 3. Nc3 {[%emt 0:00:00]} g6 {[%emt 0:00:06]} 4. Nf3 {[%emt 0:00:26]} Bg7 {[%emt 0:00:19]} 5. h3 {[%emt 0:01:06]} O-O {[%emt 0:00:19]} 6. Be3 {[%emt 0:02:21]} a6 {[%emt 0:00:26]} 7. Qd2 {[%emt 0:02:54]} b5 {[%emt 0:04:03]} 8. a3 {[%emt 0:00:36]} Bb7 {[%emt 0:00:17]} 9. Bd3 {[%emt 0:02:06]} Nbd7 {[%emt 0:00:48]} 10. d5 {[%emt 0:05:30]} c6 {[%emt 0:02:48]} 11. dxc6 {[%emt 0:02:44]} Bxc6 {[%emt 0:00:05]} 12. Nd4 {[%emt 0:03:22]} Bb7 {[%emt 0:00:38]} 13. Bh6 {[%emt 0:01:13]} Nc5 {[%emt 0:02:57]} 14. f3 {[%emt 0:08:32]} e5 {[%emt 0:05:00]} 15. Bxg7 {[%emt 0:10:38]} exd4 {[%emt 0:02:44]} 16. Bxf6 {[%emt 0:00:24]} Qxf6 {[%emt 0:00:05]} 17. Ne2 {[%emt 0:00:12]} d5 {[%emt 0:00:53]} 18. exd5 {[%emt 0:11:04]} Bxd5 {[%emt 0:00:14]} 19. O-O {[%emt 0:05:00]} Rfe8 {[%emt 0:01:32]} 20. Qf4 {[%emt 0:02:13]} Qxf4 {[%emt 0:04:49]} 21. Nxf4 {[%emt 0:00:02]} Bc4 {[%emt 0:00:11]} 22. Bxc4 {[%emt 0:04:26]} bxc4 {[%emt 0:00:13]} 23. Nd5 {[%emt 0:00:07]} Re2 {[%emt 0:00:42]} 24. Rf2 {[%emt 0:00:35]} Rxf2 {[%emt 0:00:39]} 25. Kxf2 {[%emt 0:00:36]} Rb8 {[%emt 0:00:04]} 26. Rb1 {[%emt 0:11:42]} c3 {[%emt 0:00:44]} 27. b4 {[%emt 0:10:29]} d3 {[%emt 0:00:50]} 28. Ne3 {[%emt 0:03:53]} d2 {[%emt 0:01:28]} 29. Nc4 {[%emt 0:07:04]} Na4 {[%emt 0:00:30]} 30. Rd1 {[%emt 0:00:26]} Re8 {[%emt 0:01:06]} 31. Nxd2 {[%emt 0:01:35]} Rd8 {[%emt 0:00:19]} 0-1

[Event "44th Chess Olympiad Open 2022"]
[Site "Chennai"]
[Date "2022.08.09"]
[Round "11.64"]
[White "Vella, Duncan"]
[Black "Abdelhakiem Abdellatief Nogdal"]
[Result "1-0"]
[ECO "B23"]
[WhiteElo "1985"]
[BlackElo "1960"]
[Annotator "TA"]
[PlyCount "69"]
[EventDate "2022.07.29"]
[EventType "team-tourn"]
[EventCountry "IND"]
[SourceTitle "playchess.com"]
[Source "ChessBase"]
[SourceQuality "1"]
[WhiteTeam "Malta"]
[BlackTeam "Sudan"]
[WhiteTeamCountry "MLT"]
[BlackTeamCountry "SUD"]
[TimeControl "40/5400+30:1800+30"]

{[%evp 9,69,13,53,43,64,62,74,79,75,62,95,97,85,75,135,131,123,121,133,116,127,125,165,160,222,209,195,93,212,216,241,220,259,193,308,302,299,287,492,481,687,586,870,852,1262,1195,1877,1819,1916,1931,1949,1858,29982,6387,29990,29990,29989,29990,29987,1691,1468,1194]} 1. e4 {[%emt 0:00:06]} c5 {[%emt 0:00:14]} 2. Nc3 {[%emt 0:00:12]} Nc6 {[%emt 0:00:12]} 3. Bb5 {[%emt 0:00:14]} a6 {[%emt 0:00:55]} 4. Bxc6 {[%emt 0:00:40]} dxc6 {[%emt 0:00:10]} 5. d3 {[%emt 0:00:32]} g6 {[%emt 0:00:35]} 6. f4 {[%emt 0:00:44] B23: Closed Sicilian: Lines without g3.} Bg7 {[%emt 0:00:17]} 7. Nf3 {[%emt 0:00:07]} Nf6 {[%emt 0:02:18][%cal Oc5c4]} 8. O-O {[%emt 0:00:29] White is better.} O-O {[%emt 0:00:07]} 9. Qe1 {[%emt 0:02:40]} Bg4 {[%emt 0:03:33]} 10. Ne5 {[%emt 0:10:58] [#]} Be6 $146 {[%emt 0:03:39]} ({Predecessor:} 10... Bc8 11. Be3 Ng4 12. Nxg4 Bxg4 13. Bxc5 Bd7 14. Qf2 b5 15. e5 f5 16. exf6 Bxf6 17. Rae1 Rf7 18. Ne4 Bxb2 19. c3 Bf5 20. Qxb2 Qxd3 21. Ng5 Rg7 22. Bd4 {1-0 (22) Smith,A (2478)-Allemand,C (1775) Lille 2014}) 11. Be3 {[%emt 0:03:38]} b6 {[%emt 0:16:23]} (11... Nh5 $142) 12. Nxc6 {[%emt 0:02:07] White is more active.} Qc7 {[%emt 0:00:10]} 13. Ne5 {[%emt 0:02:28][%cal Bc6e5,Be5f3,Bf3g5][%mdl 32]} Rad8 {[%emt 0:00:20]} 14. Nf3 {[%emt 0:05:49]} Ng4 {[%emt 0:04:26]} 15. Bd2 {[%emt 0:09:21]} Bd4+ {[%emt 0:04:18]} 16. Kh1 {[%emt 0:00:36][%cal Of4f5]} f5 {[%emt 0:02:01]} (16... Bg7 $16 17. Qh4 Bf6) 17. Ng5 {[%emt 0:07:29]} Bc8 {[%emt 0:02:21]} 18. Nd5 {[%emt 0:06:29]} (18. Qh4 $6 e6 $16) (18. e5 $18 {and White stays clearly on top.}) 18... Qd6 {[%emt 0:03:34]} (18... Qb7 $16) 19. Qh4 $18 {[%emt 0:06:59][%csl Gg5][%cal Rh4h7] [#]} h5 {[%emt 0:03:36]} 20. Nf3 $40 {[%emt 0:02:56][%mdl 128] Black is in trouble. Pair of Knights!} Bf6 {[%emt 0:07:29]} 21. Nxf6+ {[%emt 0:00:39]} exf6 {[%emt 0:00:19]} (21... Qxf6 $142 22. h3 fxe4) 22. h3 {[%emt 0:03:18]} fxe4 {[%emt 0:01:58]} 23. dxe4 {[%emt 0:02:25]} ({And not} 23. hxg4 exf3 24. gxh5 (24. gxf3 hxg4 25. f5 Bxf5 $17) 24... fxg2+ 25. Kxg2 Qd5+ 26. Kf2 Bb7 $15) 23... Kg7 $2 {[%emt 0:00:46]} (23... Qc7 24. Rad1 Qh7 25. hxg4 hxg4 26. Qxh7+ Kxh7) 24. e5 {[%emt 0:04:30]} ({Resist} 24. hxg4 hxg4 25. e5 Qc6 $18) 24... fxe5 {[%emt 0:04:58]} (24... Qc6 $142 25. Rae1 Rxd2 26. Nxd2 Nh6) 25. Bc3 {[%emt 0:02:04]} Rde8 {[%emt 0:06:21]} 26. hxg4 {[%emt 0:06:00]} hxg4 {[%emt 0:01:20]} 27. Nxe5 {[%emt 0:02:08]} Rf6 {[%emt 0:04:12]} 28. Nxg4 {[%emt 0:02:08]} Bxg4 {[%emt 0:08:22]} 29. Qxg4 {[%emt 0:00:11] [#] aiming for Rad1.} Rh8+ {[%emt 0:01:09]} 30. Kg1 {[%emt 0:00:05] White wants to mate with Rad1.} Rh5 {[%emt 0:01:38]} 31. Rad1 {[%emt 0:01:23]} Qf8 {[%emt 0:00:51]} 32. Qd7+ {[%emt 0:01:51]} Kh6 {[%emt 0:01:16]} 33. Bxf6 {[%emt 0:01:00]} Qxf6 {[%emt 0:01:25]} 34. Qd8 {[%emt 0:00:52]} (34. Rd6 $142 Qg7 35. Qg4 Qf7 36. f5 Rg5 37. Qf4 Qxf5 38. Qxf5 Rxf5 39. Rxf5) 34... Rf5 {[%emt 0:08:15]} 35. Qxf6 {[%emt 0:00:23] Weighted Error Value: White=0.16 (very precise) /Black=1.08} 1-0

[Event "44th Chess Olympiad Open 2022"]
[Site "Chennai"]
[Date "2022.08.09"]
[Round "11.65"]
[White "Chimthere, Alfred Charles"]
[Black "Adu Jnr, Lionel"]
[Result "1-0"]
[ECO "B12"]
[WhiteElo "2035"]
[BlackElo "1824"]
[Annotator "NA RC"]
[PlyCount "65"]
[EventDate "2022.07.29"]
[EventType "team-tourn"]
[EventCountry "IND"]
[SourceTitle "playchess.com"]
[Source "ChessBase"]
[SourceQuality "1"]
[WhiteTeam "MAW"]
[BlackTeam "Ghana"]
[BlackTeamCountry "GHA"]
[TimeControl "40/5400+30:1800+30"]

1. e4 {[%emt 0:00:04]} c6 {[%emt 0:00:13]} 2. d4 {[%emt 0:00:17]} d5 {[%emt 0:00:02]} 3. e5 {[%emt 0:02:08]} Bf5 {[%emt 0:00:17]} 4. Bd3 {[%emt 0:01:40]} Bxd3 {[%emt 0:00:30]} 5. Qxd3 {[%emt 0:00:10]} e6 {[%emt 0:00:03]} 6. Ne2 {[%emt 0:00:20]} c5 {[%emt 0:00:55]} 7. c3 {[%emt 0:00:21]} a6 {[%emt 0:00:19]} 8. O-O {[%emt 0:00:41]} Nc6 {[%emt 0:00:04]} 9. b3 {[%emt 0:00:47]} Nge7 {[%emt 0:01:05]} 10. Kh1 {[%emt 0:11:07]} g6 {[%emt 0:00:48]} 11. Bg5 {[%emt 0:00:30]} Bg7 {[%emt 0:00:19]} 12. Nd2 {[%emt 0:03:44]} O-O {[%emt 0:00:26]} 13. Qh3 {[%emt 0:04:56]} Qb6 {[%emt 0:00:30]} 14. Nf3 {[%emt 0:06:53]} cxd4 {[%emt 0:00:34]} 15. cxd4 {[%emt 0:03:04]} h5 {[%emt 0:00:09]} 16. g4 {[%emt 0:08:44]} hxg4 {[%emt 0:02:10]} 17. Qxg4 {[%emt 0:00:03]} Qb5 {[%emt 0:00:04]} 18. Ng3 {[%emt 0:01:42]} Qd3 {[%emt 0:00:40]} 19. Rad1 {[%emt 0:00:33]} Qc3 {[%emt 0:01:08]} 20. Kg2 {[%emt 0:04:23]} Nf5 {[%emt 0:06:02]} 21. Rd2 {[%emt 0:02:46]} Nce7 {[%emt 0:03:57]} 22. Ne2 {[%emt 0:01:42]} Qb4 {[%emt 0:01:39]} 23. h4 {[%emt 0:04:04]} f6 {[%emt 0:11:08]} 24. exf6 {[%emt 0:02:02]} Bxf6 {[%emt 0:00:29]} 25. Rd3 {[%emt 0:00:33]} Kg7 {[%emt 0:15:19]} 26. Nf4 {[%emt 0:01:39]} Qd6 {[%emt 0:01:34]} 27. Re1 {[%emt 0:00:31]} Rf7 {[%emt 0:14:35]} 28. Rxe6 {[%emt 0:03:09]} Qd7 {[%emt 0:02:08]} 29. Bxf6+ {[%emt 0:02:36]} Rxf6 {[%emt 0:01:44]} 30. Ne5 {[%emt 0:00:48]} Nxh4+ {[%emt 0:06:47]} 31. Qxh4 {[%emt 0:00:21]} Qxe6 {[%emt 0:07:18]} 32. Nxe6+ {[%emt 0:00:18]} Rxe6 {[%emt 0:00:26]} 33. Rh3 {[%emt 0:00:12]} 1-0

[Event "44th Chess Olympiad Open 2022"]
[Site "Chennai"]
[Date "2022.08.09"]
[Round "11.65"]
[White "Adu-Poku, Kwabena"]
[Black "Mwale, Joseph"]
[Result "0-1"]
[ECO "D37"]
[WhiteElo "1974"]
[BlackElo "2131"]
[Annotator "NA RC"]
[PlyCount "84"]
[EventDate "2022.07.29"]
[EventType "team-tourn"]
[EventCountry "IND"]
[SourceTitle "playchess.com"]
[Source "ChessBase"]
[SourceQuality "1"]
[WhiteTeam "Ghana"]
[BlackTeam "MAW"]
[WhiteTeamCountry "GHA"]
[TimeControl "40/5400+30:1800+30"]

1. d4 {[%emt 0:00:10]} Nf6 {[%emt 0:00:13]} 2. c4 {[%emt 0:00:20]} e6 {[%emt 0:00:02]} 3. Nf3 {[%emt 0:00:21]} d5 {[%emt 0:00:04]} 4. Nc3 {[%emt 0:00:39]} Be7 {[%emt 0:00:14]} 5. Bf4 {[%emt 0:00:42]} O-O {[%emt 0:02:31]} 6. e3 {[%emt 0:00:51]} b6 {[%emt 0:16:40]} 7. Bd3 {[%emt 0:00:56]} dxc4 {[%emt 0:00:55]} 8. Bxc4 {[%emt 0:00:10]} Bb7 {[%emt 0:00:12]} 9. O-O {[%emt 0:01:14]} a6 {[%emt 0:19:10]} 10. a4 {[%emt 0:04:33]} Qc8 {[%emt 0:26:28]} 11. Qe2 {[%emt 0:02:58]} c5 {[%emt 0:00:48]} 12. Rac1 {[%emt 0:04:05]} Nc6 {[%emt 0:10:33]} 13. Rfd1 {[%emt 0:00:35]} Rd8 {[%emt 0:04:30]} 14. h3 {[%emt 0:00:35]} Nd5 {[%emt 0:07:18]} 15. Bxd5 {[%emt 0:02:54]} exd5 {[%emt 0:01:34]} 16. dxc5 {[%emt 0:00:12]} Bxc5 {[%emt 0:01:22]} 17. Nxd5 {[%emt 0:00:32]} Qf5 {[%emt 0:02:59]} 18. e4 {[%emt 0:02:23]} Qh5 {[%emt 0:02:44]} 19. Bc7 {[%emt 0:02:15]} Re8 {[%emt 0:01:01]} 20. Bxb6 {[%emt 0:01:19]} Bxb6 {[%emt 0:00:18]} 21. Nxb6 {[%emt 0:00:04]} Rab8 {[%emt 0:00:52]} 22. Nd7 {[%emt 0:02:25]} Rbd8 {[%emt 0:00:29]} 23. Nc5 {[%emt 0:00:03]} Rxd1+ {[%emt 0:00:27]} 24. Qxd1 {[%emt 0:00:00]} Bc8 {[%emt 0:00:23]} 25. Qd5 {[%emt 0:01:52]} Qh6 {[%emt 0:00:25]} 26. Ng5 {[%emt 0:01:31]} Qf6 {[%emt 0:00:45]} 27. Nxa6 {[%emt 0:07:58]} Ne5 {[%emt 0:00:30]} 28. Nxf7 {[%emt 0:20:15]} Nxf7 {[%emt 0:00:02]} 29. Qc6 {[%emt 0:05:48]} Qd8 {[%emt 0:00:58]} 30. Nc7 {[%emt 0:01:06]} Rf8 {[%emt 0:00:27]} 31. Nd5 {[%emt 0:01:15]} Bd7 {[%emt 0:00:27]} 32. Qa6 {[%emt 0:01:39]} Bxh3 {[%emt 0:00:13]} 33. Rc3 {[%emt 0:07:36]} Bd7 {[%emt 0:00:06]} 34. b4 {[%emt 0:01:54]} Ne5 {[%emt 0:01:18]} 35. Qd6 {[%emt 0:03:30]} Nf7 {[%emt 0:00:31]} 36. Qa6 {[%emt 0:01:26]} Ne5 {[%emt 0:00:01]} 37. a5 {[%emt 0:00:34]} Qh4 {[%emt 0:00:22]} 38. g3 {[%emt 0:20:23]} Qxe4 {[%emt 0:00:24]} 39. Ne3 {[%emt 0:02:24]} Bc6 {[%emt 0:00:41]} 40. Kf1 {[%emt 0:00:31]} Qb1+ {[%emt 0:00:36]} 41. Ke2 {[%emt 0:30:18]} Bf3+ {[%emt 0:30:13]} 42. Kd2 {[%emt 0:00:13]} Rd8+ {[%emt 0:00:04]} 0-1